fUSD/lending_fUSD_20250329
["ID","MTS","AMOUNT","RATE_DAILY","PERIOD"]
[356809063,1743235840314,-1720.00173625,0.00015,2]
[356809064,1743235840506,-806.91847004,0.00015,2]
[356809065,1743235840545,-553.55105379,0.00015,2]
[356809078,1743235843102,-971.4300002,0.00015,2]
[356809079,1743235843114,-1798.46084153,0.00015,2]
[356809080,1743235843126,-29231.6757431,0.00015,2]
[356809081,1743235843160,-861.66753483,0.00015,2]
[356809082,1743235843330,-10413.51469432,0.00015,2]
[356809083,1743235844696,-63677.94817808,0.00015,2]
[356809084,1743235844707,-2412.46654246,0.00015,2]
[356809085,1743235844719,-2174.13,0.00015,2]
[356809086,1743235844731,-1338.26696788,0.00015,2]
[356809087,1743235844742,-673.82,0.00015,2]
[356809088,1743235844753,-908.4075,0.00015,2]
[356809090,1743235845924,-838.7,0.00015,2]
[356809091,1743235845936,-5570.45453968,0.00015,2]
[356809092,1743235845984,-526.69091135,0.00015,2]
[356809112,1743235882963,-500442.51343493,0.00015,2]
[356809113,1743235882974,-795818.03977726,0.00015,2]
[356809114,1743235882983,-210.88,0.00015027,2]
[356809115,1743235882993,-164.51,0.00015033,2]
[356809116,1743235883002,-169.07,0.00015036,2]
[356809117,1743235883011,-200.0,0.00015036,2]
[356809118,1743235883020,-509.41,0.00015039,2]
[356809119,1743235883029,-162.81,0.00015056,2]
[356809120,1743235883039,-200.0,0.00015059,2]
[356809121,1743235883049,-250.0,0.00015073,2]
[356809122,1743235883058,-170.49881255,0.00015087,2]
[356809123,1743235883068,-500.0,0.00015096,2]
[356809124,1743235883078,-150.0,0.000151,2]
[356809125,1743235883088,-162.81,0.00015131,2]
[356809126,1743235883097,-150.0,0.00015147,7]
[356809127,1743235883107,-162.81,0.00015206,2]
[356809128,1743235883117,-782.24,0.00015207,2]
[356809129,1743235883126,-933.43,0.00015238,2]
[356809130,1743235883136,-933.43,0.0001527,2]
[356809131,1743235883145,-162.81,0.00015281,2]
[356809132,1743235883156,-1517.64,0.000153,2]
[356809133,1743235883166,-203.88,0.000153,2]
[356809134,1743235883175,-933.43,0.00015302,2]
[356809135,1743235883185,-63307.52130964,0.00015313,2]
[356809136,1743235883194,-179.78,0.00015323,2]
[356809137,1743235883204,-933.43,0.00015334,2]
[356809138,1743235883214,-737.77,0.00015338,2]
[356809139,1743235883223,-162.81,0.00015355,2]
[356809140,1743235883233,-933.43,0.00015366,2]
[356809141,1743235883243,-933.43,0.00015398,2]
[356809142,1743235883253,-16046.96242975,0.000154,2]
[356809143,1743235883263,-487.96834127,0.000154,2]
[356809144,1743235883272,-162.81,0.0001543,2]
[356809145,1743235883281,-933.43,0.00015431,2]
[356809146,1743235883291,-250.69425474,0.00015442,2]
[356809147,1743235883301,-933.43,0.00015463,2]
[356809148,1743235883311,-933.43,0.00015495,2]
[356809149,1743235883321,-162.81,0.00015505,2]
[356809150,1743235883330,-933.43,0.00015527,2]
[356809151,1743235883340,-166.66,0.00015557,2]
[356809152,1743235883350,-933.43,0.00015559,2]
[356809153,1743235883359,-162.81,0.0001558,2]
[356809154,1743235883368,-933.43,0.00015591,2]
[356809155,1743235883378,-933.43,0.00015623,2]
[356809156,1743235883388,-933.43,0.00015655,2]
[356809157,1743235883397,-933.43,0.00015687,2]
[356809158,1743235883407,-933.43,0.00015719,2]
[356809159,1743235883417,-933.43,0.00015751,2]
[356809160,1743235883427,-933.43,0.00015783,2]
[356809161,1743235883436,-184.19,0.00015786,2]
[356809162,1743235883446,-933.43,0.00015815,2]
[356809163,1743235883456,-933.43,0.00015848,2]
[356809164,1743235883466,-500.0,0.00015863,2]
[356809165,1743235883476,-179.78,0.00015936,2]
[356809166,1743235883487,-1807.89845251,0.00015975,2]
[356809167,1743235883498,-4538.95322762,0.00016,2]
[356809168,1743235883508,-19512.66708127,0.00016,2]
[356809169,1743235883519,-1000.0,0.00016032,2]
[356809170,1743235883534,-166.66,0.0001607,2]
[356809171,1743235883545,-174.97,0.00016378,2]
[356809172,1743235883657,-500.0,0.00016438,2]
[356809173,1743235883671,-6014.83,0.00016438,2]
[356809174,1743235883681,-166.66,0.00016584,2]
[356809175,1743235883692,-680.0,0.000166,2]
[356809176,1743235883701,-500.0,0.00016767,2]
[356809177,1743235883713,-166.66,0.00017098,2]
[356809178,1743235883722,-782.24,0.00017108,2]
[356809179,1743235883732,-500.0,0.00017288,2]
[356809180,1743235883743,-169.07,0.00017542,2]
[356809181,1743235883754,-737.77,0.00017602,2]
[356809182,1743235883763,-166.66,0.00017611,2]
[356809183,1743235883774,-188.274816,0.00017617,2]
[356809184,1743235883784,-3727.56442327,0.00017667,2]
[356809185,1743235883794,-174.97,0.00017748,2]
[356809186,1743235883804,-1563.53673511,0.00017921,2]
[356809187,1743235883815,-1000.0,0.00018036,2]
[356809188,1743235883826,-166.66,0.00018125,2]
[356809189,1743235883836,-174.44,0.000186,2]
[356809190,1743235883846,-158.61762655,0.00018973,2]
[356809191,1743235883855,-150.0,0.00018999,2]
[356809192,1743235883866,-256.15168024,0.00019,2]
[356809193,1743235883876,-419.76139558,0.00019,2]
[356809194,1743235883885,-141634.53878731,0.00019,2]
[356809195,1743235883895,-782.24,0.00019009,2]
[356809196,1743235883905,-737.77,0.00019866,2]
[356809197,1743235883915,-152.49,0.0002,2]
[356809198,1743235883925,-152.49,0.0002,2]
[356809199,1743235883935,-152.49,0.0002,2]
[356809200,1743235883944,-152.49,0.0002,2]
[356809201,1743235883954,-152.49,0.0002,2]
[356809202,1743235883964,-152.49,0.0002,2]
[356809203,1743235883974,-1000.0,0.0002004,2]
[356809204,1743235883984,-169.07,0.00020048,2]
[356809205,1743235883994,-3727.56442327,0.00020433,2]
[356809206,1743235884004,-782.24,0.0002091,2]
[356809207,1743235884014,-1563.53673511,0.00020942,2]
[356809208,1743235884023,-224.25,0.0002098,2]
[356809209,1743235884033,-9695.0,0.00021917,2]
[356809210,1743235884043,-150.0,0.00021917,2]
[356809211,1743235884054,-1000.0,0.00022044,2]
[356809212,1743235884066,-737.77,0.0002213,2]
[356809213,1743235884076,-614.0,0.00022329,2]
[356809214,1743235884086,-169.07,0.00022554,2]
[356809215,1743235884096,-782.24,0.0002281,2]
[356809216,1743235884107,-32000.0,0.00023,14]
[356809217,1743235884118,-3727.56442327,0.000232,2]
[356809218,1743235884127,-150.0,0.00023287,2]
[356809219,1743235884138,-9740.85772192,0.0002361,7]
[356809220,1743235884147,-168.4,0.00023836,2]
[356809221,1743235884157,-1563.53673511,0.00023964,2]
[356809222,1743235884167,-9814.03508364,0.00024,14]
[356809223,1743235884177,-1000.0,0.00024048,2]
[356809224,1743235884187,-737.77,0.00024394,2]
[356809225,1743235884197,-150.0,0.00024657,2]
[356809226,1743235884207,-152.49,0.0002479,2]
[356809227,1743235884217,-152.49,0.0002479,2]
[356809228,1743235884227,-150.0,0.00024799,2]
[356809229,1743235884237,-555203.395493,0.000248,2]
[356809230,1743235884247,-250.0,0.00025,2]
[356809231,1743235884257,-3727.56442327,0.00025967,2]
[356809232,1743235884268,-150.0,0.00026027,2]
[356809233,1743235884287,-737.77,0.00026657,2]
[356809234,1743235884313,-238.82,0.00026849,2]
[356809235,1743235884343,-150.94,0.00026849,2]
[356809236,1743235884370,-1563.53673511,0.00026985,2]
[356809237,1743235884393,-1868.027247,0.00027,14]
[356809238,1743235884421,-300.0,0.00027,2]
[356809239,1743235884447,-376.465959,0.00027,2]
[356809240,1743235884471,-253.2,0.00027014,2]
[356809241,1743235884495,-800.39,0.00027014,2]
[356809242,1743235884516,-156.03748164,0.00027397,2]
[356809243,1743235884541,-159.47,0.00027397,2]
[356809244,1743235884557,-166.077,0.0002831,2]
[356809245,1743235884585,-3727.56442327,0.00028733,2]
[356809246,1743235884602,-737.77,0.00028921,2]
[356809247,1743235884621,-350.0,0.00029,2]
[356809248,1743235884641,-500.0,0.0003,2]
[356809249,1743235884662,-2000.0,0.0003,14]
[356809250,1743235884680,-1563.53673511,0.00030006,2]
[356809251,1743235884700,-400.0,0.00031,2]
[356809252,1743235884720,-737.77,0.00031185,2]
[356809253,1743235884738,-3727.56442327,0.000315,2]
[356809254,1743235884758,-238.82,0.00032646,2]
[356809255,1743235884777,-375.0,0.00032698,7]
[356809256,1743235884796,-2696.4469102,0.00032698,2]
[356809257,1743235884814,-4618.3252959,0.00032698,2]
[356809258,1743235884834,-519.81709073,0.00032699,2]
[356809259,1743235884854,-501.0,0.0003272,7]
[356809260,1743235884872,-382.97248933,0.0003272,5]
[356809261,1743235884892,-250.0,0.0003272,3]
[356809262,1743235884910,-154.14,0.0003272,2]
[356809263,1743235884929,-154.14,0.0003272,2]
[356809264,1743235884947,-154.14,0.0003272,2]
[356809265,1743235884965,-154.14,0.0003272,2]
[356809266,1743235884982,-154.14,0.0003272,2]
[356809267,1743235884999,-154.14,0.0003272,2]
[356809268,1743235885015,-154.14,0.0003272,2]
[356809269,1743235885033,-154.14,0.0003272,2]
[356809270,1743235885051,-154.14,0.0003272,2]
[356809271,1743235885068,-154.14,0.0003272,2]
[356809272,1743235885086,-154.14,0.0003272,2]
[356809273,1743235885104,-154.25367317,0.0003272,2]
[356809274,1743235885122,-1051.6,0.00032854,5]
[356809275,1743235885139,-159.47,0.00032877,2]
[356809276,1743235885156,-450.0,0.00033,2]
[356809277,1743235885173,-519.068873,0.00033,14]
[356809278,1743235885191,-1563.53673511,0.00033027,2]
[356809279,1743235885209,-152.0,0.00033125,3]
[356809280,1743235885225,-1610.03834499,0.00033227,2]
[356809281,1743235885242,-737.77,0.00033449,2]
[356809282,1743235885260,-208.0,0.0003391,2]
[356809283,1743235885278,-3727.56442327,0.00034267,2]
[356809284,1743235885296,-150.0,0.00034548,10]
[356809285,1743235885313,-500.0,0.00035,2]
[356809286,1743235885331,-503.3,0.00035,4]
[356809287,1743235885349,-208.0,0.0003509,2]
[356809288,1743235885367,-1065.0,0.00035152,5]
[356809289,1743235885384,-150.94,0.00035321,2]
[356809290,1743235885402,-152.0,0.0003542,4]
[356809291,1743235885420,-152.69,0.00035616,2]
[356809292,1743235885436,-737.77,0.00035713,2]
[356809293,1743235885454,-1563.53673511,0.00036049,2]
[356809294,1743235885473,-208.0,0.0003627,2]
[356809295,1743235885490,-152.69,0.00036729,2]
[356809296,1743235885508,-550.0,0.00037,2]
[356809297,1743235885686,-1065.0,0.00037002,5]
[356809298,1743235885699,-152.49,0.00037023,2]
[356809299,1743235885710,-3727.56442327,0.00037033,2]
[356809300,1743235885720,-500.0,0.00037164,60]
[356809301,1743235885731,-208.0,0.0003745,2]
[356809302,1743235885740,-500.0,0.00037712,60]
[356809303,1743235885753,-152.0,0.00037714,5]
[356809304,1743235885763,-152.69,0.00037842,2]
[356809305,1743235885773,-737.77,0.00037977,2]
[356809306,1743235885783,-500.0,0.0003826,60]
[356809307,1743235885793,-4171.25765551,0.00038334,2]
[356809308,1743235885802,-150.0,0.00038343,2]
[356809309,1743235885812,-149584.90243827,0.00038344,2]
[356809310,1743235885824,-1000.0,0.00038344,28]
[356809311,1743235885835,-1000.0,0.00038344,28]
[356809312,1743235885845,-1000.0,0.00038344,28]
[356809313,1743235885855,-1000.0,0.00038344,28]
[356809314,1743235885866,-1000.0,0.00038344,28]
[356809315,1743235885876,-1000.0,0.00038344,28]
[356809316,1743235885886,-1000.0,0.00038344,28]
[356809317,1743235885898,-1000.0,0.00038344,28]
[356809318,1743235885908,-1000.0,0.00038344,28]
[356809319,1743235885917,-1000.0,0.00038344,28]
[356809320,1743235885927,-1000.0,0.00038344,28]
[356809321,1743235885936,-1000.0,0.00038344,28]
[356809322,1743235885946,-1000.0,0.00038344,28]
[356809323,1743235885956,-1000.0,0.00038344,28]
[356809324,1743235885965,-1000.0,0.00038344,28]
[356809325,1743235885975,-1000.0,0.00038344,28]
[356809326,1743235885984,-1000.0,0.00038344,28]
[356809327,1743235885994,-1000.0,0.00038344,28]
[356809328,1743235886004,-1000.0,0.00038344,28]
[356809329,1743235886014,-1000.0,0.00038344,28]
[356809330,1743235886027,-1000.0,0.00038344,28]
[356809331,1743235886037,-1000.0,0.00038344,28]
[356809332,1743235886046,-1000.0,0.00038344,28]
[356809333,1743235886057,-1000.0,0.00038344,28]
[356809334,1743235886071,-1000.0,0.00038344,28]
[356809335,1743235886082,-1000.0,0.00038344,28]
[356809336,1743235886092,-1000.0,0.00038344,28]
[356809337,1743235886103,-1000.0,0.00038344,28]
[356809338,1743235886113,-1000.0,0.00038344,28]
[356809339,1743235886124,-1000.0,0.00038344,28]
[356809340,1743235886134,-1000.0,0.00038344,28]
[356809341,1743235886145,-1000.0,0.00038344,28]
[356809342,1743235886155,-1000.0,0.00038344,28]
[356809343,1743235886165,-1000.0,0.00038344,28]
[356809344,1743235886175,-1000.0,0.00038344,28]
[356809345,1743235886186,-1000.0,0.00038344,28]
[356809346,1743235886197,-1000.0,0.00038344,28]
[356809347,1743235886208,-1000.0,0.00038344,28]
[356809348,1743235886219,-1000.0,0.00038344,28]
[356809349,1743235886230,-1000.0,0.00038344,28]
[356809350,1743235886242,-1000.0,0.00038344,28]
[356809351,1743235886254,-1000.0,0.00038344,28]
[356809352,1743235886264,-1000.0,0.00038344,28]
[356809353,1743235886275,-1000.0,0.00038344,28]
[356809354,1743235886286,-1000.0,0.00038344,28]
[356809355,1743235886296,-1000.0,0.00038344,28]
[356809356,1743235886307,-1000.0,0.00038344,28]
[356809357,1743235886321,-407.81718,0.00038344,28]
[356809358,1743235886331,-152.49,0.00038346,2]
[356809359,1743235886342,-500.0,0.00038356,16]
[356809360,1743235886352,-500.0,0.00038356,5]
[356809361,1743235886363,-500.0,0.00038356,2]
[356809362,1743235886373,-500.0,0.00038356,3]
[356809363,1743235886383,-500.0,0.00038356,2]
[356809364,1743235886393,-505.09869377,0.00038356,7]
[356809365,1743235886403,-507.09,0.00038356,10]
[356809366,1743235886414,-2000.0,0.00038356,2]
[356809367,1743235886424,-1143.8,0.00038356,2]
[356809368,1743235886434,-200.0,0.00038356,7]
[356809369,1743235886444,-1315.47,0.00038356,7]
[356809370,1743235886455,-484.84428046,0.00038356,2]
[356809371,1743235886465,-527.26348353,0.00038356,15]
[356809372,1743235886477,-5318.98,0.00038356,12]
[356809373,1743235886488,-500.0,0.00038356,30]
[356809374,1743235886498,-500.0,0.00038356,30]
[356809375,1743235886507,-500.0,0.00038356,30]
[356809376,1743235886519,-500.0,0.00038356,30]
[356809377,1743235886529,-500.0,0.00038356,30]
[356809378,1743235886538,-500.0,0.00038356,30]
[356809379,1743235886548,-500.0,0.00038356,30]
[356809380,1743235886558,-172.193952,0.00038356,30]
[356809381,1743235886569,-209.45498309,0.00038356,30]
[356809382,1743235886581,-312.30601065,0.00038356,30]
[356809383,1743235886591,-500.0,0.00038356,30]
[356809384,1743235886602,-500.0,0.00038356,30]
[356809385,1743235886612,-692.57,0.00038356,30]
[356809386,1743235886621,-7670.5,0.00038356,30]
[356809387,1743235886630,-500.0,0.00038356,30]
[356809388,1743235886640,-500.0,0.00038356,30]
[356809389,1743235886650,-1131.76,0.00038356,30]
[356809390,1743235886660,-500.0,0.00038356,30]
[356809391,1743235886672,-1046.12,0.00038356,30]
[356809392,1743235886682,-562.84,0.00038356,30]
[356809393,1743235886692,-165.38177281,0.00038356,30]
[356809394,1743235886702,-172.193953,0.00038356,30]
[356809395,1743235886712,-7414.18,0.00038356,2]
[356809396,1743235886722,-173.610272,0.00038356,30]
[356809397,1743235886732,-500.0,0.00038356,30]
[356809398,1743235886743,-500.0,0.00038356,30]
[356809399,1743235886752,-500.0,0.00038356,30]
[356809400,1743235886764,-597.41,0.00038356,30]
[356809401,1743235886774,-28801.3,0.00038356,30]
[356809402,1743235886783,-500.0,0.00038356,30]
[356809403,1743235886793,-187.61869347,0.00038356,30]
[356809404,1743235886804,-500.0,0.00038356,30]
[356809405,1743235886814,-620.17,0.00038356,30]
[356809406,1743235886826,-504.63823671,0.00038356,2]
[356809407,1743235886835,-949.41,0.00038356,30]
[356809408,1743235886846,-500.0,0.00038356,30]
[356809409,1743235886857,-1156.07,0.00038356,30]
[356809410,1743235886867,-500.0,0.00038356,30]
[356809411,1743235886878,-500.0,0.00038356,2]
[356809412,1743235886888,-500.0,0.00038356,2]
[356809413,1743235886898,-500.0,0.00038356,2]
[356809414,1743235886908,-500.0,0.00038356,2]
[356809415,1743235886918,-500.0,0.00038356,30]
[356809416,1743235886929,-500.0,0.00038356,2]
[356809417,1743235886939,-500.0,0.00038356,2]
[356809418,1743235886949,-500.0,0.00038356,2]
[356809419,1743235886959,-500.0,0.00038356,2]
[356809420,1743235886969,-500.0,0.00038356,2]
[356809421,1743235886979,-500.0,0.00038356,2]
[356809422,1743235886990,-500.0,0.00038356,2]
[356809423,1743235887002,-481.7856596,0.00038356,30]
[356809424,1743235887014,-2905.13,0.00038356,30]
[356809425,1743235887026,-7170.52,0.00038356,2]
[356809426,1743235887036,-505.99154752,0.00038356,30]
[356809427,1743235887047,-670.96,0.00038356,30]
[356809428,1743235887058,-629.62,0.00038356,30]
[356809429,1743235887071,-196.7805739,0.00038356,30]
[356809430,1743235887083,-238.82,0.00038443,2]
[356809431,1743235887093,-2526.3745175,0.00038604,2]
[356809432,1743235887105,-4327.0346977,0.00038604,2]
[356809433,1743235887116,-500.0,0.0003863,16]
[356809434,1743235887128,-514.096758,0.0003863,5]
[356809435,1743235887138,-500.0,0.0003863,2]
[356809436,1743235887150,-500.0,0.0003863,3]
[356809437,1743235887160,-407.9312215,0.0003863,2]
[356809438,1743235887170,-507.09,0.0003863,10]
[356809439,1743235887180,-2000.0,0.0003863,2]
[356809440,1743235887191,-1143.8,0.0003863,2]
[356809441,1743235887201,-200.0,0.0003863,7]
[356809442,1743235887212,-1315.47,0.0003863,7]
[356809443,1743235887223,-5318.98,0.0003863,12]
[356809444,1743235887233,-522.68917686,0.0003863,30]
[356809445,1743235887244,-273.70320283,0.0003863,30]
[356809446,1743235887255,-500.0,0.0003863,30]
[356809447,1743235887265,-500.0,0.0003863,30]
[356809448,1743235887275,-692.57,0.0003863,30]
[356809449,1743235887285,-7670.5,0.0003863,30]
[356809450,1743235887296,-500.0,0.0003863,30]
[356809451,1743235887308,-1131.76,0.0003863,30]
[356809452,1743235887323,-1046.12,0.0003863,30]
[356809453,1743235887332,-562.84,0.0003863,30]
[356809454,1743235887342,-7414.18,0.0003863,2]
[356809455,1743235887352,-500.0,0.0003863,30]
[356809456,1743235887361,-597.41,0.0003863,30]
[356809457,1743235887372,-28801.3,0.0003863,30]
[356809458,1743235887383,-435.93848247,0.0003863,30]
[356809459,1743235887394,-620.17,0.0003863,30]
[356809460,1743235887404,-949.41,0.0003863,30]
[356809461,1743235887414,-500.0,0.0003863,30]
[356809462,1743235887424,-1156.07,0.0003863,30]
[356809463,1743235887435,-500.0,0.0003863,30]
[356809464,1743235887445,-500.0,0.0003863,30]
[356809465,1743235887454,-2905.13,0.0003863,30]
[356809466,1743235887464,-7170.52,0.0003863,2]
[356809467,1743235887474,-670.96,0.0003863,30]
[356809468,1743235887484,-629.62,0.0003863,30]
[356809469,1743235887495,-208.0,0.0003864,2]
[356809470,1743235887505,-500.0,0.00038808,60]
[356809471,1743235887515,-500.0,0.00038903,2]
[356809472,1743235887525,-500.0,0.00038904,16]
[356809473,1743235887535,-502.22505255,0.00038904,2]
[356809474,1743235887546,-500.0,0.00038904,3]
[356809475,1743235887556,-507.09,0.00038904,10]
[356809476,1743235887566,-2022.46440138,0.00038904,2]
[356809477,1743235887579,-1143.8,0.00038904,2]
[356809478,1743235887590,-200.0,0.00038904,7]
[356809479,1743235887599,-1315.47,0.00038904,7]
[356809480,1743235887609,-5318.98,0.00038904,12]
[356809481,1743235887619,-500.0,0.00038904,30]
[356809482,1743235887630,-500.0,0.00038904,30]
[356809483,1743235887642,-172.193952,0.00038904,30]
[356809484,1743235887652,-692.57,0.00038904,30]
[356809485,1743235887662,-7670.5,0.00038904,30]
[356809486,1743235887675,-497.42389098,0.00038904,30]
[356809487,1743235887684,-1131.76,0.00038904,30]
[356809488,1743235887693,-1046.12,0.00038904,30]
[356809489,1743235887702,-562.84,0.00038904,30]
[356809490,1743235887712,-172.193953,0.00038904,30]
[356809491,1743235887721,-7414.18,0.00038904,2]
[356809492,1743235887731,-500.0,0.00038904,30]
[356809493,1743235887739,-597.41,0.00038904,30]
[356809494,1743235887750,-28801.3,0.00038904,30]
[356809495,1743235887759,-620.17,0.00038904,30]
[356809496,1743235887768,-949.41,0.00038904,30]
[356809497,1743235887777,-500.0,0.00038904,30]
[356809498,1743235887787,-1156.07,0.00038904,30]
[356809499,1743235887796,-500.0,0.00038904,30]
[356809500,1743235887806,-500.0,0.00038904,30]
[356809501,1743235887815,-2905.13,0.00038904,30]
[356809502,1743235887827,-7170.52,0.00038904,2]
[356809503,1743235887837,-670.96,0.00038904,30]
[356809504,1743235887848,-629.62,0.00038904,30]
[356809505,1743235887858,-174.44,0.00038904,2]
[356809506,1743235887869,-1065.0,0.0003895,5]
[356809507,1743235887878,-152.69,0.00038955,2]
[356809508,1743235887888,-500.0,0.00038959,15]
[356809509,1743235887898,-500.0,0.00038959,15]
[356809510,1743235887907,-500.0,0.00038959,15]
[356809511,1743235887918,-500.0,0.00038959,15]
[356809512,1743235887929,-500.0,0.00038959,15]
[356809513,1743235887939,-500.0,0.00038959,15]
[356809514,1743235887949,-500.0,0.00038959,15]
[356809515,1743235887959,-381.66653036,0.00038959,15]
[356809516,1743235887968,-450.0,0.00038959,15]
[356809517,1743235887978,-501.98,0.00039,2]
[356809518,1743235887988,-600.0,0.00039,2]
[356809519,1743235887998,-1563.53673511,0.0003907,2]
[356809520,1743235888008,-617.31818029,0.00039178,16]
[356809521,1743235888018,-512.47210309,0.00039178,3]
[356809522,1743235888028,-507.09,0.00039178,10]
[356809523,1743235888038,-1143.8,0.00039178,2]
[356809524,1743235888048,-200.0,0.00039178,7]
[356809525,1743235888059,-1315.47,0.00039178,7]
[356809526,1743235888069,-5318.98,0.00039178,12]
[356809527,1743235888080,-500.0,0.00039178,30]
[356809528,1743235888090,-408.4059957,0.00039178,30]
[356809529,1743235888101,-692.57,0.00039178,30]
[356809530,1743235888111,-7670.5,0.00039178,30]
[356809531,1743235888121,-1131.76,0.00039178,30]
[356809532,1743235888132,-1046.12,0.00039178,30]
[356809533,1743235888142,-562.84,0.00039178,30]
[356809534,1743235888152,-7414.18,0.00039178,2]
[356809535,1743235888162,-500.0,0.00039178,30]
[356809536,1743235888172,-597.41,0.00039178,30]
[356809537,1743235888183,-28801.3,0.00039178,30]
[356809538,1743235888194,-620.17,0.00039178,30]
[356809539,1743235888204,-949.41,0.00039178,30]
[356809540,1743235888215,-500.0,0.00039178,30]
[356809541,1743235888225,-1156.07,0.00039178,30]
[356809542,1743235888235,-500.0,0.00039178,30]
[356809543,1743235888246,-500.0,0.00039178,30]
[356809544,1743235888256,-2905.13,0.00039178,30]
[356809545,1743235888266,-7170.52,0.00039178,2]
[356809546,1743235888276,-670.96,0.00039178,30]
[356809547,1743235888286,-200.0,0.00039203,2]
[356809548,1743235888296,-200.0,0.00039203,2]
[356809549,1743235888305,-200.0,0.00039203,2]
[356809550,1743235888315,-200.0,0.00039203,2]
[356809551,1743235888327,-200.0,0.00039203,2]
[356809552,1743235888336,-200.0,0.00039203,2]
[356809553,1743235888346,-200.0,0.00039203,2]
[356809554,1743235888355,-338.0,0.00039203,2]
[356809555,1743235888366,-2356.3021248,0.00039221,2]
[356809556,1743235888376,-4035.7440995,0.00039221,2]
[356809557,1743235888386,-152.49,0.00039238,2]
[356809558,1743235888396,-166.81688241,0.00039248,7]
[356809559,1743235888406,-10090.2418724,0.00039248,7]
[356809560,1743235888415,-164.98586432,0.00039248,7]
[356809561,1743235888426,-723.06002908,0.00039248,7]
[356809562,1743235888436,-87166.5161513,0.00039248,7]
[356809563,1743235888445,-500.0,0.00039356,60]
[356809564,1743235888455,-507.09,0.00039452,10]
[356809565,1743235888465,-1143.8,0.00039452,2]
[356809566,1743235888474,-200.0,0.00039452,7]
[356809567,1743235888484,-1315.47,0.00039452,7]
[356809568,1743235888494,-5318.98,0.00039452,12]
[356809569,1743235888504,-500.0,0.00039452,30]
[356809570,1743235888514,-692.57,0.00039452,30]
[356809571,1743235888523,-7670.5,0.00039452,30]
[356809572,1743235888533,-1131.76,0.00039452,30]
[356809573,1743235888544,-1046.12,0.00039452,30]
[356809574,1743235888554,-562.84,0.00039452,30]
[356809575,1743235888564,-7414.18,0.00039452,2]
[356809576,1743235888574,-173.610272,0.00039452,30]
[356809577,1743235888584,-500.0,0.00039452,30]
[356809578,1743235888593,-597.41,0.00039452,30]
[356809579,1743235888603,-28801.3,0.00039452,30]
[356809580,1743235888614,-620.17,0.00039452,30]
[356809581,1743235888625,-949.41,0.00039452,30]
[356809582,1743235888634,-500.0,0.00039452,30]
[356809583,1743235888644,-1156.07,0.00039452,30]
[356809584,1743235888655,-500.0,0.00039452,30]
[356809585,1743235888666,-500.0,0.00039452,30]
[356809586,1743235888676,-2905.13,0.00039452,30]
[356809587,1743235888685,-7170.52,0.00039452,2]
[356809588,1743235888695,-670.96,0.00039452,30]
[356809589,1743235888705,-500.0,0.00039699,2]
[356809590,1743235888716,-72182.24,0.000397,2]
[356809591,1743235888726,-507.09,0.00039726,10]
[356809592,1743235888735,-1143.8,0.00039726,2]
[356809593,1743235888745,-200.0,0.00039726,7]
[356809594,1743235888754,-1315.47,0.00039726,7]